fUSD/lending_fUSD_20250216
["ID","MTS","AMOUNT","RATE_DAILY","PERIOD"]
[353253690,1739718647907,-500.0,0.00010958,2]
[353253691,1739718647916,-500.0,0.00010958,2]
[353253692,1739718647926,-577.19,0.00010958,2]
[353253693,1739718647936,-500.0,0.00010958,2]
[353253694,1739718647946,-500.0,0.00010958,2]
[353253695,1739718647956,-502.69515135,0.00010958,2]
[353253696,1739718647965,-500.0,0.00010958,2]
[353253697,1739718647976,-500.0,0.00010958,2]
[353253698,1739718647985,-500.0,0.00010958,2]
[353253699,1739718647995,-500.0,0.00010958,2]
[353253700,1739718648004,-500.0,0.00010958,2]
[353253701,1739718648013,-500.0,0.00010958,2]
[353253702,1739718648023,-500.0,0.00010958,2]
[353253703,1739718648033,-500.0,0.00010958,2]
[353253704,1739718648043,-500.0,0.00010958,2]
[353253705,1739718648053,-500.0,0.00010958,2]
[353253706,1739718648063,-500.0,0.00010958,2]
[353253707,1739718648074,-500.0,0.00010958,2]
[353253708,1739718648084,-500.0,0.00010958,2]
[353253709,1739718648096,-500.0,0.00010958,2]
[353253710,1739718648106,-500.0,0.00010958,2]
[353253711,1739718648116,-502.9213199,0.00010958,2]
[353253712,1739718648125,-500.43138591,0.00010958,2]
[353253713,1739718648136,-707.04,0.00010958,2]
[353253714,1739718648146,-976.34,0.00010958,2]
[353253715,1739718648155,-105.02316022,0.00010958,2]
[353253716,1739718649287,-394.97683978,0.00010958,2]
[353253717,1739718649297,-500.0,0.00010958,2]
[353253718,1739718649307,-464.68146022,0.00010958,2]
[353253719,1739718649326,-35.31853978,0.00010958,2]
[353253720,1739718649336,-385.10547432,0.00010958,2]
[353253721,1739718649348,-114.89452568,0.00010958,2]
[353253722,1739718649358,-566.43192507,0.00010958,2]
[353253723,1739718649368,-500.0,0.00010958,2]
[353253724,1739718649378,-500.0,0.00010958,2]
[353253725,1739718649387,-358.17175781,0.00010958,2]
[353253726,1739718649404,-559.18729511,0.00010958,2]
[353253727,1739718649416,-781.96650346,0.00010958,2]
[353253728,1739718649426,-539.6172218,0.00010958,2]
[353253729,1739718649436,-500.0,0.00010958,2]
[353253730,1739718649446,-500.0,0.00010958,2]
[353253731,1739718649455,-500.0,0.00010958,2]
[353253732,1739718649465,-500.0,0.00010958,2]
[353253733,1739718649475,-288.11224064,0.00010958,2]
[353253734,1739718649488,-450.46775936,0.00010958,2]
[353253735,1739718649497,-500.0,0.00010958,2]
[353253736,1739718649507,-503.88097422,0.00010958,2]
[353253737,1739718649517,-18.97853535,0.00010958,2]
[353253738,1739718649535,-561.18146465,0.00010958,2]
[353253739,1739718649544,-7.13853551,0.00010958,2]
[353253740,1739718649556,-481.01336568,0.00010958,2]
[353253741,1739718649567,-11.84809881,0.00010958,2]
[353253742,1739718649578,-500.0,0.00010958,2]
[353253743,1739718649588,-513.91,0.00010958,2]
[353253744,1739718649598,-500.0,0.00010958,2]
[353253745,1739718649607,-500.0,0.00010958,2]
[353253746,1739718649616,-500.0,0.00010958,2]
[353253747,1739718649625,-301.10708469,0.00010958,2]
[353253748,1739718649638,-198.89291531,0.00010958,2]
[353253749,1739718649647,-500.96863866,0.00010958,2]
[353253750,1739718649657,-251.08844603,0.00010958,2]
[353253751,1739718649677,-250.03569911,0.00010958,2]
[353253752,1739718649686,-500.0,0.00010958,2]
[353253753,1739718649695,-500.0,0.00010958,2]
[353253754,1739718649704,-500.0,0.00010958,2]
[353253755,1739718649713,-500.0,0.00010958,2]
[353253756,1739718649723,-500.0,0.00010958,2]
[353253757,1739718649732,-500.0,0.00010958,2]
[353253758,1739718649741,-500.0,0.00010958,2]
[353253759,1739718649750,-500.0,0.00010958,2]
[353253760,1739718649759,-500.0,0.00010958,2]
[353253761,1739718649768,-500.0,0.00010958,2]
[353253762,1739718649777,-500.0,0.00010958,2]
[353253763,1739718649791,-500.0,0.00010958,2]
[353253764,1739718649801,-500.0,0.00010958,2]
[353253765,1739718649810,-500.0,0.00010958,2]
[353253766,1739718649819,-612.87041273,0.00010958,2]
[353253767,1739718649828,-500.0,0.00010958,2]
[353253768,1739718649837,-500.0,0.00010958,2]
[353253769,1739718649846,-500.0,0.00010958,2]
[353253770,1739718649856,-546.91,0.00010958,2]
[353253771,1739718649866,-500.0,0.00010958,2]
[353253772,1739718649876,-500.0,0.00010958,2]
[353253773,1739718649885,-573.3,0.00010958,2]
[353253774,1739718649894,-500.0,0.00010958,2]
[353253775,1739718649903,-500.0,0.00010958,2]
[353253776,1739718649912,-500.0,0.00010958,2]
[353253777,1739718649921,-500.0,0.00010958,2]
[353253778,1739718649930,-500.0,0.00010958,2]
[353253779,1739718649939,-500.0,0.00010958,2]
[353253780,1739718649947,-500.0,0.00010958,2]
[353253781,1739718649957,-500.0,0.00010958,2]
[353253782,1739718649966,-500.00189374,0.00010958,2]
[353253783,1739718649975,-500.0,0.00010958,2]
[353253784,1739718649984,-500.0,0.00010958,2]
[353253785,1739718649992,-588.99377253,0.00010958,2]
[353253786,1739718650001,-500.0,0.00010958,2]
[353253787,1739718650010,-525.72,0.00010958,2]
[353253788,1739718650019,-500.0,0.00010958,2]
[353253789,1739718650029,-501.67152359,0.00010958,2]
[353253790,1739718650038,-500.0,0.00010958,2]
[353253791,1739718650047,-500.0,0.00010958,2]
[353253792,1739718650056,-481.18445874,0.00010958,2]
[353253793,1739718650065,-500.0,0.00010958,2]
[353253794,1739718650074,-500.0,0.00010958,2]
[353253795,1739718650083,-500.0,0.00010958,2]
[353253796,1739718650092,-501.18873521,0.00010958,2]
[353253797,1739718650103,-500.0,0.00010958,2]
[353253798,1739718650112,-500.0,0.00010958,2]
[353253799,1739718650121,-500.20161135,0.00010958,2]
[353253800,1739718650130,-500.0,0.00010958,2]
[353253801,1739718650139,-500.0,0.00010958,2]
[353253802,1739718650148,-557.55,0.00010958,2]
[353253803,1739718650157,-500.0,0.00010958,2]
[353253804,1739718650166,-500.0,0.00010958,2]
[353253805,1739718650175,-500.0,0.00010958,2]
[353253806,1739718650185,-500.0,0.00010958,2]
[353253807,1739718650194,-500.0,0.00010958,2]
[353253808,1739718650203,-500.0,0.00010958,2]
[353253809,1739718650212,-500.0,0.00010958,2]
[353253810,1739718650221,-500.0,0.00010958,2]
[353253811,1739718650230,-500.0,0.00010958,2]
[353253812,1739718650240,-500.0,0.00010958,2]
[353253813,1739718650249,-566.46,0.00010958,2]
[353253814,1739718650259,-500.0,0.00010958,2]
[353253815,1739718650268,-500.0,0.00010958,2]
[353253816,1739718650277,-500.0,0.00010958,2]
[353253817,1739718650286,-500.0,0.00010958,2]
[353253818,1739718650296,-500.0,0.00010958,2]
[353253819,1739718650305,-500.0,0.00010958,2]
[353253820,1739718650314,-509.46756867,0.00010958,2]
[353253821,1739718650323,-500.78092934,0.00010958,2]
[353253822,1739718650333,-500.0,0.00010958,2]
[353253823,1739718650343,-500.55113959,0.00010958,2]
[353253824,1739718650352,-500.0,0.00010958,2]
[353253825,1739718650362,-500.0,0.00010958,2]
[353253826,1739718650371,-500.0,0.00010958,2]
[353253827,1739718650382,-500.0,0.00010958,2]
[353253828,1739718650390,-500.0,0.00010958,2]
[353253829,1739718650399,-500.0,0.00010958,2]
[353253830,1739718650409,-500.0,0.00010958,2]
[353253831,1739718650419,-503.43178763,0.00010958,2]
[353253832,1739718650429,-500.0,0.00010958,2]
[353253833,1739718650438,-500.0,0.00010958,2]
[353253834,1739718650448,-500.0,0.00010958,2]
[353253835,1739718650457,-500.0,0.00010958,2]
[353253836,1739718650467,-369.56619666,0.00010958,2]
[353253837,1739718650477,-500.0,0.00010958,2]
[353253838,1739718650486,-501.08442884,0.00010958,2]
[353253839,1739718650495,-500.0,0.00010958,2]
[353253840,1739718650504,-548.89984107,0.00010958,2]
[353253841,1739718650514,-504.29848385,0.00010958,2]
[353253842,1739718650523,-500.0,0.00010958,2]
[353253843,1739718650532,-572.19425315,0.00010958,2]
[353253844,1739718650542,-500.0,0.00010958,2]
[353253845,1739718650551,-500.0,0.00010958,2]
[353253846,1739718650560,-500.0,0.00010958,2]
[353253847,1739718650570,-509.82536094,0.00010958,2]
[353253848,1739718650579,-500.0,0.00010958,2]
[353253849,1739718650589,-500.0,0.00010958,2]
[353253850,1739718650598,-500.0,0.00010958,2]
[353253851,1739718650607,-639.49699047,0.00010958,2]
[353253852,1739718650616,-500.0,0.00010958,2]
[353253853,1739718650626,-500.0,0.00010958,2]
[353253854,1739718650635,-500.0,0.00010958,2]
[353253855,1739718650644,-500.0,0.00010958,2]
[353253856,1739718650653,-500.0,0.00010958,2]
[353253857,1739718650662,-500.0,0.00010958,2]
[353253858,1739718650672,-500.0,0.00010958,2]
[353253859,1739718650681,-500.0,0.00010958,2]
[353253860,1739718650691,-500.0,0.00010958,2]
[353253861,1739718650701,-500.0,0.00010958,2]
[353253862,1739718650710,-500.0,0.00010958,2]
[353253863,1739718650719,-563.44566323,0.00010958,2]
[353253864,1739718650729,-500.0,0.00010958,2]
[353253865,1739718650738,-500.0,0.00010958,2]
[353253866,1739718650748,-500.72834176,0.00010958,2]
[353253867,1739718650759,-500.0,0.00010958,2]
[353253868,1739718650770,-500.0,0.00010958,2]
[353253869,1739718650782,-500.0,0.00010958,2]
[353253870,1739718650793,-923.28,0.00010958,2]
[353253871,1739718650803,-500.0,0.00010958,2]
[353253872,1739718650813,-501.84855561,0.00010958,2]
[353253873,1739718650823,-500.0,0.00010958,2]
[353253874,1739718650834,-500.0,0.00010958,2]
[353253875,1739718650844,-500.0,0.00010958,2]
[353253876,1739718650853,-500.0,0.00010958,2]
[353253877,1739718650863,-500.0,0.00010958,2]
[353253878,1739718650872,-500.0,0.00010958,2]
[353253879,1739718650881,-500.0,0.00010958,2]
[353253880,1739718650890,-500.0,0.00010958,2]
[353253881,1739718650899,-500.0,0.00010958,2]
[353253882,1739718650909,-500.0,0.00010958,2]
[353253883,1739718650918,-291.00012165,0.00010958,2]
[353253884,1739718650928,-500.0,0.00010958,2]
[353253885,1739718650939,-500.0,0.00010958,2]
[353253886,1739718650948,-500.0,0.00010958,2]
[353253887,1739718650958,-589.32,0.00010958,2]
[353253888,1739718650968,-500.0,0.00010958,2]
[353253889,1739718650978,-500.0,0.00010958,2]
[353253890,1739718650987,-500.0,0.00010958,2]
[353253891,1739718650997,-500.0,0.00010958,2]
[353253892,1739718651006,-500.0,0.00010958,2]
[353253893,1739718651015,-500.0,0.00010958,2]
[353253894,1739718651025,-500.0,0.00010958,2]
[353253895,1739718651034,-500.0,0.00010958,2]
[353253896,1739718651044,-500.0,0.00010958,2]
[353253897,1739718651053,-614.66835702,0.00010958,2]
[353253898,1739718651062,-500.0,0.00010958,2]
[353253899,1739718651072,-500.0,0.00010958,2]
[353253900,1739718651082,-503.89288859,0.00010958,2]
[353253901,1739718651092,-500.0,0.00010958,2]
[353253902,1739718651101,-500.0,0.00010958,2]
[353253903,1739718651110,-500.0,0.00010958,2]
[353253904,1739718651120,-500.0,0.00010958,2]
[353253905,1739718651130,-500.0,0.00010958,2]
[353253906,1739718651140,-500.0,0.00010958,2]
[353253907,1739718651149,-500.0,0.00010958,2]
[353253908,1739718651158,-500.0,0.00010958,2]
[353253909,1739718651167,-500.0,0.00010958,2]
[353253910,1739718651177,-500.0,0.00010958,2]
[353253911,1739718651186,-500.0,0.00010958,2]
[353253912,1739718651195,-500.0,0.00010958,2]
[353253913,1739718651205,-500.0,0.00010958,2]
[353253914,1739718651214,-500.0,0.00010958,2]
[353253915,1739718651224,-646.23,0.00010958,2]
[353253916,1739718651233,-500.0,0.00010958,2]
[353253917,1739718651243,-501.58991301,0.00010958,2]
[353253918,1739718651252,-479.04134835,0.00010958,2]
[353253919,1739718651263,-500.0,0.00010958,2]
[353253920,1739718651272,-500.0,0.00010958,2]
[353253921,1739718651282,-500.0,0.00010958,2]
[353253922,1739718651292,-500.0,0.00010958,2]
[353253923,1739718651302,-500.0,0.00010958,2]
[353253924,1739718651311,-500.0,0.00010958,2]
[353253925,1739718651322,-500.0,0.00010958,2]
[353253926,1739718651332,-500.0,0.00010958,2]
[353253927,1739718651343,-500.67968671,0.00010958,2]
[353253928,1739718651353,-500.0,0.00010958,2]
[353253929,1739718651362,-502.1353292,0.00010958,2]
[353253930,1739718651372,-500.0,0.00010958,2]
[353253931,1739718651382,-500.0,0.00010958,2]
[353253932,1739718651392,-500.0,0.00010958,2]
[353253933,1739718651401,-500.0,0.00010958,2]
[353253934,1739718651411,-500.0,0.00010958,2]
[353253935,1739718651420,-515.18,0.00010958,2]
[353253936,1739718651430,-500.0,0.00010958,2]
[353253937,1739718651440,-500.0,0.00010958,2]
[353253938,1739718651450,-500.0,0.00010958,2]
[353253939,1739718651460,-500.0,0.00010958,2]
[353253940,1739718651470,-500.0,0.00010958,2]
[353253941,1739718651480,-500.0,0.00010958,2]
[353253942,1739718651489,-500.0,0.00010958,2]
[353253943,1739718651499,-500.0,0.00010958,2]
[353253944,1739718651509,-500.0,0.00010958,2]
[353253945,1739718651518,-500.0,0.00010958,2]
[353253946,1739718651528,-500.0,0.00010958,2]
[353253947,1739718651537,-503.56618,0.00010958,2]
[353253948,1739718651548,-506.17438753,0.00010958,2]
[353253949,1739718651558,-500.0,0.00010958,2]
[353253950,1739718651568,-318.13483541,0.00010958,2]
[353253951,1739718651578,-500.0,0.00010958,2]
[353253952,1739718651588,-500.0,0.00010958,2]
[353253953,1739718651598,-607.88,0.00010958,2]
[353253954,1739718651608,-500.0,0.00010958,2]
[353253955,1739718651618,-500.0,0.00010958,2]
[353253956,1739718651628,-500.0,0.00010958,2]
[353253957,1739718651639,-500.0,0.00010958,2]
[353253958,1739718651649,-500.0,0.00010958,2]
[353253959,1739718651659,-500.0,0.00010958,2]
[353253960,1739718651668,-500.0,0.00010958,2]
[353253961,1739718651678,-500.0,0.00010958,2]
[353253962,1739718651688,-500.0,0.00010958,2]
[353253963,1739718651697,-500.0,0.00010958,2]
[353253964,1739718651707,-500.0,0.00010958,2]
[353253965,1739718651716,-500.0,0.00010958,2]
[353253966,1739718651726,-500.0,0.00010958,2]
[353253967,1739718651736,-648.58,0.00010958,2]
[353253968,1739718651746,-502.42256294,0.00010958,2]
[353253969,1739718651756,-611.99,0.00010958,2]
[353253970,1739718651766,-724.33,0.00010958,2]
[353253971,1739718651776,-530.13,0.00010958,2]
[353253972,1739718651787,-505.53504009,0.00010958,2]
[353253973,1739718651799,-500.96373816,0.00010958,2]
[353253974,1739718651808,-508.93898993,0.00010958,2]
[353253975,1739718651818,-500.54817221,0.00010958,2]
[353253976,1739718651828,-500.0,0.00010958,2]
[353253977,1739718651839,-531.44,0.00010958,2]
[353253978,1739718651849,-503.13093878,0.00010958,2]
[353253979,1739718651858,-500.0,0.00010958,2]
[353253980,1739718651868,-500.0,0.00010958,2]
[353253981,1739718651878,-502.09504654,0.00010958,2]
[353253982,1739718651888,-500.0,0.00010958,2]
[353253983,1739718651897,-500.0,0.00010958,2]
[353253984,1739718651906,-504.31200738,0.00010958,2]
[353253985,1739718651916,-501.5066081,0.00010958,2]
[353253986,1739718651926,-501.4022572,0.00010958,2]
[353253987,1739718651935,-500.0,0.00010958,2]
[353253988,1739718651944,-500.0,0.00010958,2]
[353253989,1739718651954,-500.0,0.00010958,2]
[353253990,1739718651964,-556.70349705,0.00010958,2]
[353253991,1739718651974,-500.0,0.00010958,2]
[353253992,1739718651984,-500.0,0.00010958,2]
[353253993,1739718651994,-500.0,0.00010958,2]
[353253994,1739718652003,-500.0,0.00010958,2]
[353253995,1739718652013,-500.0,0.00010958,2]
[353253996,1739718652023,-500.0,0.00010958,2]
[353253997,1739718652034,-500.0,0.00010958,2]
[353253998,1739718652044,-500.0,0.00010958,2]
[353253999,1739718652054,-500.0,0.00010958,2]
[353254000,1739718652064,-503.30041939,0.00010958,2]
[353254001,1739718652075,-500.0,0.00010958,2]
[353254002,1739718652084,-500.0,0.00010958,2]
[353254003,1739718652095,-500.0,0.00010958,2]
[353254004,1739718652105,-501.23653215,0.00010958,2]
[353254005,1739718652115,-502.0119099,0.00010958,2]
[353254006,1739718652124,-500.0,0.00010958,2]
[353254007,1739718652134,-500.0,0.00010958,2]
[353254008,1739718652143,-500.0,0.00010958,2]
[353254009,1739718652153,-501.25071103,0.00010958,2]
[353254010,1739718652163,-500.0,0.00010958,2]
[353254011,1739718652173,-500.0,0.00010958,2]
[353254012,1739718652182,-500.0,0.00010958,2]
[353254013,1739718652192,-500.0,0.00010958,2]
[353254014,1739718652202,-502.76911956,0.00010958,2]
[353254015,1739718652211,-504.30006424,0.00010958,2]
[353254016,1739718652221,-500.0,0.00010958,2]
[353254017,1739718652231,-500.82900598,0.00010958,2]
[353254018,1739718652240,-709.21,0.00010958,2]
[353254019,1739718652250,-503.46943469,0.00010958,2]
[353254020,1739718652260,-505.70408315,0.00010958,2]
[353254021,1739718652269,-500.0,0.00010958,2]
[353254022,1739718652279,-500.64590943,0.00010958,2]
[353254023,1739718652289,-500.0,0.00010958,2]
[353254024,1739718652299,-504.24955432,0.00010958,2]
[353254025,1739718652310,-500.0,0.00010958,2]
[353254026,1739718652320,-503.48339647,0.00010958,2]
[353254027,1739718652329,-531.26,0.00010958,2]
[353254028,1739718652340,-500.0,0.00010958,2]
[353254029,1739718652350,-500.0,0.00010958,2]
[353254030,1739718652359,-500.0,0.00010958,2]
[353254031,1739718652369,-542.46,0.00010958,2]
[353254032,1739718652379,-537.7921969,0.00010958,2]
[353254033,1739718652388,-514.53,0.00010958,2]
[353254034,1739718652398,-500.0,0.00010958,2]
[353254035,1739718652409,-254.59556122,0.00010958,2]
[353254036,1739718652419,-500.0,0.00010958,2]
[353254037,1739718652428,-500.0,0.00010958,2]
[353254038,1739718652438,-503.06629408,0.00010958,2]
[353254039,1739718652447,-636.12,0.00010958,2]
[353254040,1739718652456,-503.27369014,0.00010958,2]
[353254041,1739718652466,-509.42,0.00010958,2]
[353254042,1739718652476,-500.0,0.00010958,2]
[353254043,1739718652486,-501.76812854,0.00010958,2]
[353254044,1739718652495,-500.0,0.00010958,2]
[353254045,1739718652505,-500.0,0.00010958,2]
[353254046,1739718652514,-500.0,0.00010958,2]
[353254047,1739718652524,-502.25201244,0.00010958,2]
[353254048,1739718652534,-500.0,0.00010958,2]
[353254049,1739718652543,-500.0,0.00010958,2]
[353254050,1739718652553,-500.0,0.00010958,2]
[353254051,1739718652563,-503.35245337,0.00010958,2]
[353254052,1739718652573,-500.0,0.00010958,2]
[353254053,1739718652585,-684.18,0.00010958,2]
[353254054,1739718652596,-500.0,0.00010958,2]
[353254055,1739718652606,-500.0,0.00010958,2]
[353254056,1739718652615,-502.04683465,0.00010958,2]
[353254057,1739718652624,-500.0,0.00010958,2]
[353254058,1739718652634,-501.83182371,0.00010958,2]
[353254059,1739718652643,-501.9551972,0.00010958,2]
[353254060,1739718652653,-500.0,0.00010958,2]
[353254061,1739718652664,-504.09728571,0.00010958,2]
[353254062,1739718652673,-500.0,0.00010958,2]
[353254063,1739718652683,-500.0,0.00010958,2]
[353254064,1739718652692,-573.12,0.00010958,2]
[353254065,1739718652702,-500.0,0.00010958,2]
[353254066,1739718652712,-500.0,0.00010958,2]
[353254067,1739718652721,-500.0,0.00010958,2]
[353254068,1739718652731,-504.16965076,0.00010958,2]
[353254069,1739718652741,-500.0,0.00010958,2]
[353254070,1739718652753,-500.0,0.00010958,2]
[353254071,1739718652762,-460.78487989,0.00010958,2]
[353254072,1739718652772,-500.0,0.00010958,2]
[353254073,1739718652781,-500.0,0.00010958,2]
[353254074,1739718652799,-500.0,0.00010958,2]
[353254075,1739718652810,-505.99571447,0.00010958,2]
[353254076,1739718652820,-500.0,0.00010958,2]
[353254077,1739718652831,-500.0,0.00010958,2]
[353254078,1739718652842,-500.0,0.00010958,2]
[353254079,1739718652852,-500.0,0.00010958,2]
[353254080,1739718652862,-500.0,0.00010958,2]
[353254081,1739718652873,-472.1840871,0.00010958,2]
[353254082,1739718652882,-674.24,0.00010958,2]
[353254083,1739718652892,-500.0,0.00010958,2]
[353254084,1739718652902,-500.0,0.00010958,2]
[353254085,1739718652912,-500.0,0.00010958,2]
[353254086,1739718652921,-602.5,0.00010958,2]
[353254087,1739718652931,-851.64,0.00010958,2]
[353254088,1739718652941,-500.0,0.00010958,2]
[353254089,1739718652950,-958.42,0.00010958,2]
[353254090,1739718652960,-502.76151064,0.00010958,2]
[353254091,1739718652972,-500.0,0.00010958,2]
[353254092,1739718652982,-500.0,0.00010958,2]
[353254093,1739718652992,-515.37,0.00010958,2]
[353254094,1739718653001,-500.0,0.00010958,2]
[353254095,1739718653011,-500.0,0.00010958,2]
[353254096,1739718653021,-501.8519541,0.00010958,2]
[353254097,1739718653031,-500.0,0.00010958,2]
[353254098,1739718653042,-500.0,0.00010958,2]
[353254099,1739718653052,-500.13,0.00010958,2]
[353254100,1739718653062,-500.0,0.00010958,2]
[353254101,1739718653071,-567.62,0.00010958,2]
[353254102,1739718653081,-503.07752413,0.00010958,2]
[353254103,1739718653091,-500.0,0.00010958,2]
[353254104,1739718653100,-500.0,0.00010958,2]
[353254105,1739718653109,-500.0,0.00010958,2]
[353254106,1739718653119,-292.60095225,0.00010958,2]
[353254107,1739718653128,-1278.56,0.00010958,2]
[353254108,1739718653137,-500.0,0.00010958,2]
[353254109,1739718653146,-500.0,0.00010958,2]
[353254110,1739718653155,-500.0,0.00010958,2]
[353254111,1739718653164,-500.0,0.00010958,2]
[353254112,1739718653174,-500.0,0.00010958,2]
[353254113,1739718653183,-502.95714697,0.00010958,2]
[353254114,1739718653193,-500.0,0.00010958,2]
[353254115,1739718653202,-500.0,0.00010958,2]
[353254116,1739718653212,-260.48400372,0.00010958,2]
[353254117,1739718653222,-500.0,0.00010958,2]
[353254118,1739718653231,-500.0,0.00010958,2]
[353254119,1739718653241,-1613.07,0.00010958,2]
[353254120,1739718653250,-861.73,0.00010958,2]
[353254121,1739718653260,-500.0,0.00010958,2]
[353254122,1739718653270,-800.74,0.00010958,2]
[353254123,1739718653279,-500.0,0.00010958,2]
[353254124,1739718653289,-500.0,0.00010958,2]
[353254125,1739718653298,-500.0,0.00010958,2]
[353254126,1739718653308,-500.0,0.00010958,2]
[353254127,1739718653317,-500.0,0.00010958,2]
[353254128,1739718653327,-515.58,0.00010958,2]
[353254129,1739718653336,-1037.99,0.00010958,2]
[353254130,1739718653347,-500.0,0.00010958,2]
[353254131,1739718653356,-525.69,0.00010958,2]
[353254132,1739718653366,-509.10932656,0.00010958,2]
[353254133,1739718653375,-500.0,0.00010958,2]
[353254134,1739718653384,-500.0,0.00010958,2]
[353254135,1739718653394,-500.0,0.00010958,2]
[353254136,1739718653403,-500.0,0.00010958,2]
[353254137,1739718653413,-500.0,0.00010958,2]
[353254138,1739718653422,-500.0,0.00010958,2]
[353254139,1739718653432,-500.0,0.00010958,2]
[353254140,1739718653442,-500.0,0.00010958,2]
[353254141,1739718653452,-500.0,0.00010958,2]
[353254142,1739718653462,-500.0,0.00010958,2]
[353254143,1739718653471,-500.0,0.00010958,2]
[353254144,1739718653481,-992.76,0.00010958,2]
[353254145,1739718653490,-1289.38,0.00010958,2]
[353254146,1739718653500,-539.58,0.00010958,2]
[353254147,1739718653510,-500.0,0.00010958,2]
[353254148,1739718653519,-500.0,0.00010958,2]
[353254149,1739718653529,-500.0,0.00010958,2]
[353254150,1739718653539,-519.22,0.00010958,2]
[353254151,1739718653549,-500.0,0.00010958,2]
[353254152,1739718653558,-931.55,0.00010958,2]
[353254153,1739718653568,-502.14,0.00010958,2]
[353254154,1739718653578,-1073.66,0.00010958,2]
[353254155,1739718653587,-500.0,0.00010958,2]
[353254156,1739718653598,-500.0,0.00010958,2]
[353254157,1739718653608,-1169.64,0.00010958,2]
[353254158,1739718653618,-3623.98,0.00010958,2]
[353254159,1739718653628,-673.39,0.00010958,2]
[353254160,1739718653637,-500.0,0.00010958,2]
[353254161,1739718653647,-500.0,0.00010958,2]
[353254162,1739718653656,-500.0,0.00010958,2]
[353254163,1739718653666,-500.0,0.00010958,2]
[353254164,1739718653675,-500.0,0.00010958,2]
[353254165,1739718653685,-500.0,0.00010958,2]
[353254166,1739718653694,-500.0,0.00010958,2]
[353254167,1739718653703,-1084.09,0.00010958,2]
[353254168,1739718653713,-1389.62,0.00010958,2]
[353254169,1739718653722,-639.43,0.00010958,2]
[353254170,1739718653732,-531.74,0.00010958,2]
[353254171,1739718653741,-500.0,0.00010958,2]
[353254172,1739718653751,-500.0,0.00010958,2]
[353254173,1739718653760,-500.0,0.00010958,2]
[353254174,1739718653770,-848.96,0.00010958,2]
[353254175,1739718653779,-500.0,0.00010958,2]
[353254176,1739718653791,-1021.34,0.00010958,2]
[353254177,1739718653800,-500.0,0.00010958,2]
[353254178,1739718653810,-1023.25,0.00010958,2]
[353254179,1739718653820,-565.84,0.00010958,2]
[353254180,1739718653832,-500.0,0.00010958,2]
[353254181,1739718653841,-1192.02,0.00010958,2]
[353254182,1739718653851,-500.0,0.00010958,2]
[353254183,1739718653861,-500.0,0.00010958,2]
[353254184,1739718653872,-500.0,0.00010958,2]
[353254185,1739718653882,-500.0,0.00010958,2]
[353254186,1739718653891,-889.55,0.00010958,2]
[353254187,1739718654087,-504.87106762,0.00010958,2]
[353254188,1739718654098,-500.0,0.00010958,2]
[353254189,1739718654107,-1592.19,0.00010958,2]